[Event "2nd Bieszczady Chess-ch A 2022"]
[Site "Bystre"]
[Date "2022.07.21"]
[Round "6.3"]
[White "Maksimenko, Andrei Jr"]
[Black "Lewtak, Damian"]
[Result "0-1"]
[ECO "B06"]
[WhiteElo "1897"]
[BlackElo "2397"]
[Annotator "ChessBase"]
[PlyCount "108"]
[EventDate "2022.07.17"]
[EventCountry "POL"]
[SourceTitle "playchess.com"]
[Source "ChessBase"]
[SourceQuality "1"]
[TimeControl "5400+30"]

1. e4 {[%emt 0:06:45]} g6 {[%emt 0:00:21]} 2. d4 {[%emt 0:01:30]} Bg7 {[%emt 0:00:05]} 3. Nf3 {[%emt 0:00:57]} c6 {[%emt 0:00:39]} 4. a4 {[%emt 0:07:13]} d5 {[%emt 0:00:28]} 5. exd5 {[%emt 0:03:22]} cxd5 {[%emt 0:01:36]} 6. Bb5+ {[%emt 0:01:35]} Nd7 {[%emt 0:00:52]} 7. O-O {[%emt 0:02:39]} Ngf6 {[%emt 0:00:06]} 8. Nc3 {[%emt 0:05:32]} a6 {[%emt 0:01:53]} 9. Bd3 {[%emt 0:04:02]} O-O {[%emt 0:02:52]} 10. h3 {[%emt 0:01:29]} Re8 {[%emt 0:01:00]} 11. Re1 {[%emt 0:02:39]} b6 {[%emt 0:01:43]} 12. Bf4 {[%emt 0:02:09]} Bb7 {[%emt 0:00:28]} 13. Qd2 {[%emt 0:08:36]} Nf8 {[%emt 0:02:21]} 14. Be5 {[%emt 0:08:56]} Qc8 {[%emt 0:01:16]} 15. Ra3 {[%emt 0:05:21]} Bc6 {[%emt 0:02:37]} 16. Rb3 {[%emt 0:03:57]} Qb7 {[%emt 0:00:55]} 17. Qe2 {[%emt 0:01:58]} Bh6 {[%emt 0:02:09]} 18. Bh2 {[%emt 0:02:22]} Ne6 {[%emt 0:01:48]} 19. Qd1 {[%emt 0:06:37]} Rad8 {[%emt 0:04:33]} 20. Bf1 {[%emt 0:02:14]} Rf8 {[%emt 0:04:54]} 21. Ne5 {[%emt 0:00:50]} Be8 {[%emt 0:01:15]} 22. Qd3 {[%emt 0:01:20]} Ra8 {[%emt 0:01:22]} 23. g3 {[%emt 0:07:14]} Bg7 {[%emt 0:07:57]} 24. Bg2 {[%emt 0:00:30]} Rd8 {[%emt 0:01:27]} 25. Bf1 {[%emt 0:00:18]} Ne4 {[%emt 0:01:32]} 26. a5 {[%emt 0:05:02]} b5 {[%emt 0:01:53]} 27. Nxe4 {[%emt 0:01:31]} dxe4 {[%emt 0:00:06]} 28. Qxe4 {[%emt 0:00:51]} Qxe4 {[%emt 0:00:34]} 29. Rxe4 {[%emt 0:00:01]} Rxd4 {[%emt 0:00:16]} 30. Rbe3 {[%emt 0:01:33]} Rxe4 {[%emt 0:00:13]} 31. Rxe4 {[%emt 0:00:05]} Ng5 {[%emt 0:00:06]} 32. Rg4 {[%emt 0:01:43]} Bxe5 {[%emt 0:00:09]} 33. Rxg5 {[%emt 0:00:09]} Bxb2 {[%emt 0:00:05]} 34. Rc5 {[%emt 0:02:03]} Bd7 {[%emt 0:04:16]} 35. g4 {[%emt 0:02:03]} Rc8 {[%emt 0:01:09]} 36. Rxc8+ {[%emt 0:01:05]} Bxc8 {[%emt 0:00:06]} 37. Bd3 {[%emt 0:00:51]} e5 {[%emt 0:01:13]} 38. f4 {[%emt 0:00:54]} f6 {[%emt 0:00:37]} 39. Be4 {[%emt 0:01:05]} Bc3 {[%emt 0:00:30]} 40. g5 {[%emt 0:00:00]} exf4 {[%emt 0:00:00]} 41. Bxf4 {[%emt 0:00:00]} fxg5 {[%emt 0:00:00]} 42. Bc7 {[%emt 0:00:00]} Kf7 {[%emt 0:00:00]} 43. Kf2 {[%emt 0:00:00]} Ke7 {[%emt 0:00:00]} 44. Bc6 {[%emt 0:00:00]} Bxh3 {[%emt 0:00:00]} 45. Bb7 {[%emt 0:00:00]} Kd7 {[%emt 0:00:00]} 46. Bb6 {[%emt 0:00:00]} Bf5 {[%emt 0:00:00]} 47. Ke3 {[%emt 0:00:00]} h5 {[%emt 0:00:00]} 48. Kf2 {[%emt 0:00:00]} Bxc2 {[%emt 0:00:00]} 49. Bxa6 {[%emt 0:00:00]} Kc6 {[%emt 0:00:00]} 50. Bd8 {[%emt 0:00:00]} g4 {[%emt 0:00:00]} 51. Bc8 {[%emt 0:00:00]} Bf5 {[%emt 0:00:00]} 52. Ba6 {[%emt 0:00:00]} Be5 {[%emt 0:00:00]} 53. Bg5 {[%emt 0:00:05]} Bc7 {[%emt 0:00:00]} 54. Bd2 {[%emt 0:00:27]} h4 {[%emt 0:00:00]} 0-1

[Event "2nd Bieszczady Chess-ch A 2022"]
[Site "Bystre"]
[Date "2022.07.21"]
[Round "6.4"]
[White "Babiarz, Arkadiusz"]
[Black "Dzwierzynski, Bartosz"]
[Result "1/2-1/2"]
[ECO "B50"]
[WhiteElo "2027"]
[BlackElo "2129"]
[Annotator "NA"]
[PlyCount "68"]
[EventDate "2022.07.17"]
[EventCountry "POL"]
[SourceTitle "playchess.com"]
[Source "ChessBase"]
[SourceQuality "1"]
[TimeControl "5400+30"]

1. e4 {[%emt 0:00:02]} c5 {[%emt 0:00:15]} 2. Nf3 {[%emt 0:00:06]} d6 {[%emt 0:00:44]} 3. c3 {[%emt 0:00:05]} Nf6 {[%emt 0:00:42]} 4. h3 {[%emt 0:00:06]} g6 {[%emt 0:00:08]} 5. Bd3 {[%emt 0:00:06]} Bg7 {[%emt 0:00:06]} 6. Bc2 {[%emt 0:00:05]} O-O {[%emt 0:00:16]} 7. O-O {[%emt 0:00:05]} b6 {[%emt 0:00:57]} 8. d4 {[%emt 0:00:08]} Bb7 {[%emt 0:00:53]} 9. Re1 {[%emt 0:00:11]} Nbd7 {[%emt 0:00:53]} 10. Bg5 {[%emt 0:12:17]} e5 {[%emt 0:03:54]} 11. dxe5 {[%emt 0:03:46]} dxe5 {[%emt 0:00:53]} 12. Qd2 {[%emt 0:02:32]} Qc7 {[%emt 0:11:28]} 13. Qe3 {[%emt 0:00:10]} Nh5 {[%emt 0:01:42]} 14. Nbd2 {[%emt 0:02:02]} f6 {[%emt 0:01:51]} 15. Bh6 {[%emt 0:00:32]} Nf4 {[%emt 0:00:54]} 16. Bb3+ {[%emt 0:06:51]} Kh8 {[%emt 0:00:06]} 17. Bxg7+ {[%emt 0:00:09]} Kxg7 {[%emt 0:00:05]} 18. Rad1 {[%emt 0:00:18]} b5 {[%emt 0:03:01]} 19. g3 {[%emt 0:07:32]} c4 {[%emt 0:04:52]} 20. gxf4 {[%emt 0:02:17]} exf4 {[%emt 0:01:21]} 21. Qe2 {[%emt 0:00:45]} cxb3 {[%emt 0:00:22]} 22. Nxb3 {[%emt 0:00:21]} Ne5 {[%emt 0:07:24]} 23. Nbd4 {[%emt 0:03:14]} Nxf3+ {[%emt 0:00:52]} 24. Qxf3 {[%emt 0:00:40]} Qe5 {[%emt 0:00:33]} 25. Qxf4 {[%emt 0:00:35]} Qxf4 {[%emt 0:02:41]} 26. Ne6+ {[%emt 0:00:07]} Kh6 {[%emt 0:00:02]} 27. Nxf4 {[%emt 0:00:08]} Rae8 {[%emt 0:00:09]} 28. Rd7 {[%emt 0:05:09]} Rxe4 {[%emt 0:00:35]} 29. Rxe4 {[%emt 0:00:05]} Bxe4 {[%emt 0:00:12]} 30. Ne6 {[%emt 0:06:47]} Re8 {[%emt 0:05:02]} 31. Nd4 {[%emt 0:00:34]} a6 {[%emt 0:01:17]} 32. Rd6 {[%emt 0:01:00]} Bb7 {[%emt 0:01:01]} 33. Kf1 {[%emt 0:02:36]} Bc8 {[%emt 0:01:18]} 34. Kg2 {[%emt 0:07:01]} Kg7 {[%emt 0:02:52]} 1/2-1/2

[Event "2nd Bieszczady Chess-ch A 2022"]
[Site "Bystre"]
[Date "2022.07.21"]
[Round "6.5"]
[White "Sygulski, Piotr"]
[Black "Wilk, Tomasz"]
[Result "1/2-1/2"]
[ECO "A46"]
[WhiteElo "2013"]
[BlackElo "1900"]
[Annotator "NA RC"]
[PlyCount "104"]
[EventDate "2022.07.17"]
[EventCountry "POL"]
[SourceTitle "playchess.com"]
[Source "ChessBase"]
[SourceQuality "1"]
[TimeControl "5400+30"]

1. d4 {[%emt 0:00:02]} Nf6 {[%emt 0:00:04]} 2. Nf3 {[%emt 0:00:05]} e6 {[%emt 0:00:13]} 3. e3 {[%emt 0:00:40]} b6 {[%emt 0:01:02]} 4. b3 {[%emt 0:01:15]} Bb7 {[%emt 0:02:24]} 5. Bb2 {[%emt 0:01:30]} Be7 {[%emt 0:02:25]} 6. Nbd2 {[%emt 0:01:33]} Ne4 {[%emt 0:01:13]} 7. Nxe4 {[%emt 0:01:35]} Bxe4 {[%emt 0:00:04]} 8. Bd3 {[%emt 0:00:13]} f5 {[%emt 0:01:10]} 9. Bxe4 {[%emt 0:01:12]} fxe4 {[%emt 0:00:04]} 10. Nd2 {[%emt 0:00:15]} d5 {[%emt 0:00:45]} 11. Qg4 {[%emt 0:00:53]} O-O {[%emt 0:03:04]} 12. Qxe6+ {[%emt 0:01:03]} Kh8 {[%emt 0:00:03]} 13. c4 {[%emt 0:04:40]} Bb4 {[%emt 0:00:46]} 14. Rf1 {[%emt 0:01:37]} c6 {[%emt 0:02:37]} 15. a3 {[%emt 0:02:01]} Rf6 {[%emt 0:03:13]} 16. Qg4 {[%emt 0:10:58]} Bd6 {[%emt 0:04:35]} 17. O-O-O {[%emt 0:05:53]} Nd7 {[%emt 0:02:11]} 18. Qe2 {[%emt 0:02:00]} Qe7 {[%emt 0:00:55]} 19. a4 {[%emt 0:02:39]} Raf8 {[%emt 0:05:42]} 20. f3 {[%emt 0:07:35]} exf3 {[%emt 0:01:25]} 21. Rxf3 {[%emt 0:01:45]} Bxh2 {[%emt 0:01:50]} 22. Rdf1 {[%emt 0:06:40]} Bf4 {[%emt 0:01:44]} 23. Kd1 {[%emt 0:05:14]} Bh6 {[%emt 0:02:02]} 24. Rxf6 {[%emt 0:03:20]} Nxf6 {[%emt 0:00:33]} 25. Rf3 {[%emt 0:05:46]} Re8 {[%emt 0:00:15]} 26. Nf1 {[%emt 0:01:55]} Ne4 {[%emt 0:08:59]} 27. Rf5 {[%emt 0:01:35]} Rf8 {[%emt 0:02:24]} 28. Rxf8+ {[%emt 0:06:00]} Qxf8 {[%emt 0:01:30]} 29. cxd5 {[%emt 0:00:15]} cxd5 {[%emt 0:00:23]} 30. Nd2 {[%emt 0:00:19]} Nf6 {[%emt 0:05:35]} 31. Qf3 {[%emt 0:03:26]} Qe8 {[%emt 0:01:07]} 32. Ke2 {[%emt 0:00:38]} b5 {[%emt 0:00:47]} 33. axb5 {[%emt 0:01:44]} Qxb5+ {[%emt 0:00:05]} 34. Kd1 {[%emt 0:06:39]} Qd3 {[%emt 0:00:23]} 35. Qe2 {[%emt 0:00:55]} Qxe3 {[%emt 0:00:15]} 36. Qxe3 {[%emt 0:00:04]} Bxe3 {[%emt 0:00:05]} 37. Nf3 {[%emt 0:00:02]} Kg8 {[%emt 0:01:24]} 38. Ne5 {[%emt 0:00:28]} Bf4 {[%emt 0:05:56]} 39. Nc6 {[%emt 0:00:05]} Kf7 {[%emt 0:05:04]} 40. Nxa7 {[%emt 0:00:00]} Ke6 {[%emt 0:00:00]} 41. Ke2 {[%emt 0:00:00]} g5 {[%emt 0:00:00]} 42. Nc6 {[%emt 0:00:00]} g4 {[%emt 0:00:00]} 43. b4 {[%emt 0:00:00]} h5 {[%emt 0:00:00]} 44. b5 {[%emt 0:00:00]} h4 {[%emt 0:00:00]} 45. b6 {[%emt 0:00:00]} h3 {[%emt 0:00:00]} 46. gxh3 {[%emt 0:00:00]} gxh3 {[%emt 0:00:00]} 47. Kf3 {[%emt 0:00:00]} h2 {[%emt 0:00:00]} 48. Kg2 {[%emt 0:00:00]} Ne4 {[%emt 0:00:00]} 49. Bc1 {[%emt 0:00:00]} Nf2 {[%emt 0:00:00]} 50. Bxf4 {[%emt 0:00:00]} h1=Q+ {[%emt 0:00:00]} 51. Kxf2 {[%emt 0:00:00]} Qb1 {[%emt 0:00:00]} 52. b7 {[%emt 0:00:00]} Qc2+ 1/2-1/2

[Event "2nd Bieszczady Chess-ch A 2022"]
[Site "Bystre"]
[Date "2022.07.21"]
[Round "6.6"]
[White "Kasperek, Ryszard"]
[Black "Hnatyshyn, Anastasiia"]
[Result "1-0"]
[ECO "B31"]
[WhiteElo "2058"]
[BlackElo "1931"]
[Annotator "NA RC"]
[PlyCount "75"]
[EventDate "2022.07.17"]
[EventCountry "POL"]
[SourceTitle "playchess.com"]
[Source "ChessBase"]
[SourceQuality "1"]
[TimeControl "5400+30"]

1. e4 {[%emt 0:00:02]} c5 {[%emt 0:00:04]} 2. Nf3 {[%emt 0:00:06]} Nc6 {[%emt 0:00:03]} 3. Bb5 {[%emt 0:00:12]} g6 {[%emt 0:00:06]} 4. O-O {[%emt 0:00:06]} Bg7 {[%emt 0:00:04]} 5. Re1 {[%emt 0:01:07]} Nf6 {[%emt 0:00:08]} 6. e5 {[%emt 0:00:11]} Nd5 {[%emt 0:00:05]} 7. Nc3 {[%emt 0:00:06]} Nc7 {[%emt 0:00:08]} 8. Bxc6 {[%emt 0:00:11]} dxc6 {[%emt 0:00:05]} 9. Ne4 {[%emt 0:01:44]} b6 {[%emt 0:00:32]} 10. Nf6+ {[%emt 0:01:26]} Kf8 {[%emt 0:00:06]} 11. Ne4 {[%emt 0:00:04]} Bg4 {[%emt 0:00:15]} 12. d3 {[%emt 0:00:31]} Bxe5 {[%emt 0:00:44]} 13. Nxe5 {[%emt 0:10:48]} Bxd1 {[%emt 0:00:19]} 14. Bh6+ {[%emt 0:05:43]} Kg8 {[%emt 0:00:30]} 15. Nxc6 {[%emt 0:01:40]} Bxc2 {[%emt 0:00:25]} 16. Nxc5 {[%emt 0:05:36]} bxc5 {[%emt 0:05:42]} 17. Nxe7+ {[%emt 0:01:06]} Qxe7 {[%emt 0:00:07]} 18. Rxe7 {[%emt 0:00:03]} Ne6 {[%emt 0:05:35]} 19. Re1 {[%emt 0:33:20]} Bxd3 {[%emt 0:12:30]} 20. R1xe6 {[%emt 0:02:34]} Bb5 {[%emt 0:08:01]} 21. h4 {[%emt 0:09:38]} a6 {[%emt 0:10:10]} 22. b3 {[%emt 0:01:53]} Rd8 {[%emt 0:04:53]} 23. Re5 {[%emt 0:00:47]} c4 {[%emt 0:02:17]} 24. bxc4 {[%emt 0:02:40]} Bc6 {[%emt 0:00:11]} 25. f3 {[%emt 0:03:12]} Rb8 {[%emt 0:01:11]} 26. Rc5 {[%emt 0:01:30]} Be8 {[%emt 0:00:33]} 27. Kh2 {[%emt 0:02:44]} Rd8 {[%emt 0:00:31]} 28. Kg3 {[%emt 0:00:09]} Rb8 {[%emt 0:00:10]} 29. Rec7 {[%emt 0:01:40]} Rb6 {[%emt 0:01:36]} 30. Re5 {[%emt 0:01:23]} Rb8 {[%emt 0:00:13]} 31. c5 {[%emt 0:00:41]} Rd8 {[%emt 0:00:19]} 32. c6 {[%emt 0:01:27]} Ra8 {[%emt 0:00:20]} 33. Ree7 {[%emt 0:00:29]} Rd8 {[%emt 0:00:19]} 34. Rcd7 {[%emt 0:02:19]} Bxd7 {[%emt 0:01:20]} 35. Rxd7 {[%emt 0:01:10]} Rc8 {[%emt 0:00:29]} 36. c7 {[%emt 0:00:26]} f6 {[%emt 0:00:23]} 37. Bg7 {[%emt 0:00:20]} a5 {[%emt 0:00:46]} 38. Bxh8 {[%emt 0:00:07]} 1-0

[Event "2nd Bieszczady Chess-ch A 2022"]
[Site "Bystre"]
[Date "2022.07.21"]
[Round "6.6"]
[White "Kasperek, Ryszard"]
[Black "Hnatyshyn, Anastasiya"]
[Result "*"]
[ECO "B31"]
[WhiteElo "2058"]
[BlackElo "1931"]
[Annotator "NA RC"]
[PlyCount "24"]
[EventDate "2022.07.17"]
[EventCountry "POL"]
[SourceTitle "playchess.com"]
[Source "ChessBase"]
[SourceQuality "1"]
[TimeControl "5400+30"]

1. e4 {[%emt 0:00:02]} c5 {[%emt 0:00:04]} 2. Nf3 {[%emt 0:00:06]} Nc6 {[%emt 0:00:03]} 3. Bb5 {[%emt 0:00:12]} g6 {[%emt 0:00:06]} 4. O-O {[%emt 0:00:06]} Bg7 {[%emt 0:00:04]} 5. Re1 {[%emt 0:01:07]} Nf6 {[%emt 0:00:08]} 6. e5 {[%emt 0:00:11]} Nd5 {[%emt 0:00:05]} 7. Nc3 {[%emt 0:00:06]} Nc7 {[%emt 0:00:08]} 8. Bxc6 {[%emt 0:00:11]} dxc6 {[%emt 0:00:05]} 9. Ne4 {[%emt 0:01:44]} b6 {[%emt 0:00:32]} 10. Nf6+ {[%emt 0:01:26]} Kf8 {[%emt 0:00:06]} 11. Ne4 {[%emt 0:00:04]} Bg4 {[%emt 0:00:15]} 12. d3 {[%emt 0:00:31]} Bxe5 {[%emt 0:00:44]} *

[Event "2nd Bieszczady Chess-ch A 2022"]
[Site "Bystre"]
[Date "2022.07.21"]
[Round "6.7"]
[White "Kucharski, Bartlomiej"]
[Black "Bugajski, Robert"]
[Result "1/2-1/2"]
[ECO "B50"]
[WhiteElo "2003"]
[BlackElo "2075"]
[Annotator "NA RC"]
[PlyCount "122"]
[EventDate "2022.07.17"]
[EventCountry "POL"]
[SourceTitle "playchess.com"]
[Source "ChessBase"]
[SourceQuality "1"]
[TimeControl "5400+30"]

1. e4 {[%emt 0:00:14]} c5 {[%emt 0:00:17]} 2. Nf3 {[%emt 0:00:21]} d6 {[%emt 0:00:10]} 3. d4 {[%emt 0:00:24]} Nf6 {[%emt 0:00:26]} 4. Nc3 {[%emt 0:00:46]} cxd4 {[%emt 0:00:10]} 5. Qxd4 {[%emt 0:00:13]} Bd7 {[%emt 0:01:50]} 6. Bg5 {[%emt 0:07:24]} Nc6 {[%emt 0:01:00]} 7. Qd2 {[%emt 0:00:16]} a6 {[%emt 0:01:37]} 8. Be2 {[%emt 0:04:05]} e6 {[%emt 0:04:17]} 9. Rd1 {[%emt 0:09:13]} h6 {[%emt 0:10:20]} 10. Bh4 {[%emt 0:01:51]} Qc7 {[%emt 0:00:58]} 11. O-O {[%emt 0:03:09]} Be7 {[%emt 0:00:19]} 12. Bxf6 {[%emt 0:24:34]} gxf6 {[%emt 0:01:25]} 13. Kh1 {[%emt 0:00:11]} O-O-O {[%emt 0:03:07]} 14. Nd4 {[%emt 0:10:36]} Nxd4 {[%emt 0:10:14]} 15. Qxd4 {[%emt 0:00:06]} Kb8 {[%emt 0:02:00]} 16. f4 {[%emt 0:07:04]} h5 {[%emt 0:00:44]} 17. Nb1 {[%emt 0:04:01]} h4 {[%emt 0:02:12]} 18. h3 {[%emt 0:00:07]} Rhg8 {[%emt 0:02:44]} 19. c4 {[%emt 0:00:27]} Bc6 {[%emt 0:02:47]} 20. Bf3 {[%emt 0:02:19]} Qa5 {[%emt 0:05:04]} 21. Nc3 {[%emt 0:05:10]} Qc5 {[%emt 0:00:37]} 22. Ne2 {[%emt 0:03:58]} f5 {[%emt 0:08:03]} 23. exf5 {[%emt 0:04:52]} Bxf3 {[%emt 0:01:10]} 24. Rxf3 {[%emt 0:00:09]} Qxf5 {[%emt 0:00:51]} 25. Rb3 {[%emt 0:01:58]} Rc8 {[%emt 0:21:49]} 26. Rbd3 {[%emt 0:04:33]} Rgd8 {[%emt 0:03:19]} 27. b3 {[%emt 0:01:37]} Rc6 {[%emt 0:04:19]} 28. Qe3 {[%emt 0:00:30]} Rcc8 {[%emt 0:03:02]} 29. Nd4 {[%emt 0:00:42]} Qh5 {[%emt 0:03:23]} 30. Qe4 {[%emt 0:01:44]} d5 {[%emt 0:02:14]} 31. cxd5 {[%emt 0:00:49]} Qxd5 {[%emt 0:01:06]} 32. Qh7 {[%emt 0:01:20]} Rg8 {[%emt 0:01:17]} 33. Nf3 {[%emt 0:00:16]} Qf5 {[%emt 0:01:37]} 34. Qxf5 {[%emt 0:00:15]} exf5 {[%emt 0:00:01]} 35. Rd7 {[%emt 0:00:42]} Rgd8 {[%emt 0:00:55]} 36. Ne5 {[%emt 0:00:42]} Rxd7 {[%emt 0:01:23]} 37. Rxd7 {[%emt 0:00:10]} Rc1+ {[%emt 0:00:16]} 38. Kh2 {[%emt 0:00:01]} Bc5 {[%emt 0:00:02]} 39. Nf3 {[%emt 0:01:16]} Bf2 {[%emt 0:00:12]} 40. Nxh4 {[%emt 0:00:00]} Bxh4 {[%emt 0:00:00]} 41. Rxf7 {[%emt 0:00:00]} Rc3 {[%emt 0:00:00]} 42. Rg7 {[%emt 0:00:00]} Rc7 {[%emt 0:00:00]} 43. Rg8+ {[%emt 0:00:00]} Rc8 {[%emt 0:00:00]} 44. Rg7 {[%emt 0:00:00]} Rf8 {[%emt 0:00:00]} 45. g3 {[%emt 0:00:00]} Bf6 {[%emt 0:00:00]} 46. Rh7 {[%emt 0:00:00]} Bd4 {[%emt 0:00:00]} 47. Kg2 {[%emt 0:00:36]} Rc8 {[%emt 0:00:00]} 48. g4 {[%emt 0:01:28]} fxg4 {[%emt 0:00:00]} 49. hxg4 {[%emt 0:00:02]} Rc2+ {[%emt 0:00:00]} 50. Kf3 {[%emt 0:00:12]} Rxa2 {[%emt 0:00:00]} 51. g5 {[%emt 0:01:07]} Rb2 {[%emt 0:00:00]} 52. Ke4 {[%emt 0:00:47]} Bc3 {[%emt 0:00:00]} 53. f5 {[%emt 0:00:52]} Rg2 {[%emt 0:00:00]} 54. g6 {[%emt 0:00:37]} b5 {[%emt 0:00:20]} 55. Kd5 {[%emt 0:01:06]} a5 {[%emt 0:01:02]} 56. Rh3 {[%emt 0:01:35]} Bb2 {[%emt 0:02:30]} 57. Ke6 {[%emt 0:00:45]} a4 {[%emt 0:00:09]} 58. bxa4 {[%emt 0:00:21]} bxa4 {[%emt 0:00:01]} 59. Kf7 {[%emt 0:01:23]} a3 {[%emt 0:00:41]} 60. Rxa3 {[%emt 0:00:38]} Bxa3 {[%emt 0:00:12]} 61. g7 {[%emt 0:00:31]} Ka8 1/2-1/2

[Event "2nd Bieszczady Chess-ch A 2022"]
[Site "Bystre"]
[Date "2022.07.21"]
[Round "6.8"]
[White "Janzer, Hubert"]
[Black "Palacki, Rafal"]
[Result "1/2-1/2"]
[ECO "D24"]
[WhiteElo "1839"]
[BlackElo "1832"]
[Annotator "NA COMBH"]
[PlyCount "78"]
[EventDate "2022.07.17"]
[EventCountry "POL"]
[SourceTitle "playchess.com"]
[Source "ChessBase"]
[SourceQuality "1"]
[TimeControl "5400+30"]

1. d4 {[%emt 0:00:13]} d5 {[%emt 0:00:05]} 2. Nf3 {[%emt 0:00:36]} Nf6 {[%emt 0:00:06]} 3. c4 {[%emt 0:01:12]} dxc4 {[%emt 0:00:05]} 4. Nc3 {[%emt 0:00:38]} e6 {[%emt 0:01:42]} 5. Qa4+ {[%emt 0:03:48]} Nbd7 {[%emt 0:01:19]} 6. e4 {[%emt 0:01:54]} c6 {[%emt 0:01:27]} 7. Qxc4 {[%emt 0:02:11]} Be7 {[%emt 0:00:53]} 8. Bd3 {[%emt 0:01:47]} O-O {[%emt 0:03:03]} 9. h4 {[%emt 0:07:32]} Nb6 {[%emt 0:07:28]} 10. Qb3 {[%emt 0:02:14]} e5 {[%emt 0:00:03]} 11. Ne2 {[%emt 0:05:23]} exd4 {[%emt 0:05:09]} 12. Nexd4 {[%emt 0:25:20]} c5 {[%emt 0:01:00]} 13. Nf5 {[%emt 0:05:05]} c4 {[%emt 0:01:22]} 14. Bxc4 {[%emt 0:03:21]} Nxe4 {[%emt 0:01:41]} 15. Nxe7+ {[%emt 0:01:39]} Qxe7 {[%emt 0:00:09]} 16. O-O {[%emt 0:00:26]} Nc5 {[%emt 0:01:40]} 17. Qc2 {[%emt 0:02:53]} Nxc4 {[%emt 0:05:39]} 18. Qxc4 {[%emt 0:02:29]} b5 {[%emt 0:04:31]} 19. Qc3 {[%emt 0:01:22]} Ne6 {[%emt 0:04:48]} 20. Re1 {[%emt 0:01:35]} h6 {[%emt 0:02:57]} 21. Bf4 {[%emt 0:02:20]} Bb7 {[%emt 0:03:26]} 22. Bg3 {[%emt 0:04:01]} Rac8 {[%emt 0:01:13]} 23. Qe3 {[%emt 0:00:24]} Qb4 {[%emt 0:04:57]} 24. Ne5 {[%emt 0:01:35]} Qd4 {[%emt 0:02:48]} 25. Rad1 {[%emt 0:04:48]} Qxe3 {[%emt 0:02:18]} 26. Rxe3 {[%emt 0:00:08]} Rfd8 {[%emt 0:02:21]} 27. Rde1 {[%emt 0:01:45]} Bd5 {[%emt 0:02:50]} 28. Ra3 {[%emt 0:00:34]} Ra8 {[%emt 0:01:12]} 29. Ra5 {[%emt 0:03:21]} a6 {[%emt 0:00:38]} 30. a4 {[%emt 0:00:20]} Nd4 {[%emt 0:01:02]} 31. axb5 {[%emt 0:00:32]} axb5 {[%emt 0:00:12]} 32. Rxa8 {[%emt 0:01:31]} Bxa8 {[%emt 0:00:05]} 33. Ra1 {[%emt 0:01:24]} Be4 {[%emt 0:03:47]} 34. Ra7 {[%emt 0:01:48]} f6 {[%emt 0:00:40]} 35. Rd7 {[%emt 0:01:15]} Rxd7 {[%emt 0:00:22]} 36. Nxd7 {[%emt 0:00:05]} Ne2+ {[%emt 0:00:49]} 37. Kh2 {[%emt 0:00:50]} Nc1 {[%emt 0:00:15]} 38. Nc5 {[%emt 0:00:47]} Bc2 {[%emt 0:02:56]} 39. Bf4 {[%emt 0:02:23]} Nd3 {[%emt 0:00:07]} 1/2-1/2

[Event "2nd Bieszczady Chess-ch A 2022"]
[Site "Bystre"]
[Date "2022.07.22"]
[Round "7.1"]
[White "Razin, Vadim"]
[Black "Kyc, Jerzy"]
[Result "1-0"]
[ECO "D15"]
[WhiteElo "2428"]
[BlackElo "2203"]
[Annotator "TA"]
[PlyCount "91"]
[EventDate "2022.07.17"]
[EventCountry "POL"]
[SourceTitle "playchess.com"]
[Source "ChessBase"]
[SourceQuality "1"]
[TimeControl "5400+30"]

{[%evp 9,91,20,29,21,27,2,21,21,43,19,63,50,62,56,100,121,110,87,126,123,166,177,160,96,100,55,54,45,99,99,99,99,99,99,99,97,220,220,236,239,262,261,254,250,251,260,233,218,218,219,219,219,273,264,333,303,400,312,396,262,420,401,408,352,478,480,468,448,494,482,503,489,579,564,579,579,538,546,678,533,1017,995,912,875]} 1. d4 {[%emt 0:00:01]} d5 {[%emt 0:00:07]} 2. Nf3 {[%emt 0:00:07]} Nf6 {[%emt 0:00:19]} 3. c4 {[%emt 0:00:06]} c6 {[%emt 0:01:54]} 4. Nc3 {[%emt 0:00:26]} a6 {[%emt 0:00:25]} 5. e3 {[%emt 0:01:03]} b5 {[%emt 0:01:47]} 6. c5 {[%emt 0:00:12] D15: Slav Defence: 4 Nc3 a6 and gambit lines after 4 Nc3 dxc4.} Bg4 {[%emt 0:02:46]} 7. Qb3 {[%emt 0:00:46]} Bxf3 {[%emt 0:02:45]} 8. gxf3 {[%emt 0:00:02] The position is equal.} e5 {[%emt 0:01:59]} 9. a4 {[%emt 0:01:04][%cal Ra4b5]} exd4 {[%emt 0:02:06]} 10. exd4 {[%emt 0:00:08][%cal Ra4b5]} Nbd7 {[%emt 0:00:51]} 11. Qa3 $36 {[%emt 0:06:10][%cal Ra4b5][%mdl 2048] White has some pressure.} Rc8 {[%emt 0:16:28]} 12. axb5 {[%emt 0:00:25]} axb5 {[%emt 0:00:03]} (12... Qe7+ $2 13. Ne2 axb5 14. Bh3 $18) 13. Qa5 {[%emt 0:06:48]} Be7 {[%emt 0:06:59]} 14. Qxd8+ {[%emt 0:02:46]} Bxd8 {[%emt 0:00:19]} 15. Bh3 {[%emt 0:01:23]} O-O {[%emt 0:05:11]} 16. Bg5 {[%emt 0:01:28] [#]} (16. Kd1 $142) 16... Rc7 $146 {[%emt 0:06:57]} ({Predecessor:} 16... Re8+ 17. Kd2 Rc7 18. Bf4 Rb7 19. Ra6 Bc7 20. Bg3 Nb8 21. Ra8 Bxg3 22. hxg3 Nbd7 {1-0 (41) Batsiashvili,N (2324)-Uygur,S Izmir 2006}) 17. Ra8 {[%emt 0:22:14] White is more active.} Be7 $1 {[%emt 0:03:00]} 18. Ra5 {[%emt 0:07:26]} h6 {[%emt 0:14:10]} ({Better is} 18... Nb8 $14) 19. Bf4 {[%emt 0:04:01]} Rb7 {[%emt 0:00:34]} 20. O-O {[%emt 0:01:05][%cal Bh1f1,Bf1a1,Ba1a7][%mdl 32]} Nh5 {[%emt 0:00:48] [#]} 21. Be3 {[%emt 0:02:10][%cal Oc3d5]} f5 {[%emt 0:15:15]} 22. Rfa1 {[%emt 0:01:19] Strongly threatening Ra7.} b4 {[%emt 0:04:48] This move loses the game for Black.} (22... Nb8 $16) 23. Ne2 $18 {[%emt 0:01:24]} Bg5 {[%emt 0:06:05]} 24. f4 {[%emt 0:07:01]} Bd8 {[%emt 0:00:51]} 25. Ra7 {[%emt 0:00:10]} Rxa7 {[%emt 0:00:50]} 26. Rxa7 {[%emt 0:00:01]} Nb8 {[%emt 0:02:23]} 27. Nc1 {[%emt 0:11:32]} Rf7 {[%emt 0:01:11]} 28. Rxf7 {[%emt 0:00:54]} Kxf7 {[%emt 0:00:01]} 29. Bxf5 {[%emt 0:00:07]} g6 {[%emt 0:01:35]} 30. Bc8 {[%emt 0:02:01]} Bc7 {[%emt 0:00:54]} 31. Nd3 {[%emt 0:00:11]} b3 {[%emt 0:01:06]} 32. Kg2 {[%emt 0:00:32]} Ba5 {[%emt 0:00:34]} 33. Kf3 {[%emt 0:01:57]} Nf6 {[%emt 0:00:20]} 34. Ke2 {[%emt 0:01:28]} Ke7 $2 {[%emt 0:01:06]} (34... Ng8 {might work better.} 35. f5 Ne7) 35. h4 {[%emt 0:04:04]} Kd8 {[%emt 0:00:21]} 36. Bh3 {[%emt 0:00:07]} h5 {[%emt 0:00:53]} 37. f5 {[%emt 0:00:33] White is clearly winning.} gxf5 {[%emt 0:00:16]} 38. Bxf5 {[%emt 0:00:25]} Nbd7 {[%emt 0:00:40]} 39. Nc1 {[%emt 0:00:38]} Ke7 {[%emt 0:00:37]} 40. Nxb3 {[%emt 0:00:00]} Bc7 {[%emt 0:00:00]} 41. Bg5 {[%emt 0:00:00] [#] Bxd7 is the strong threat.} Kf7 {[%emt 0:00:00]} 42. Nc1 {[%emt 0:00:00]} Nf8 {[%emt 0:00:00]} 43. Nd3 {[%emt 0:00:00]} Ne4 {[%emt 0:00:00]} 44. Bf4 {[%emt 0:00:00]} Bd8 {[%emt 0:00:00]} 45. Ne5+ {[%emt 0:00:00]} Kg7 {[%emt 0:00:00]} 46. f3 {[%emt 0:00:00] Weighted Error Value: White=0.19 (very precise) /Black=0.31} 1-0